[Event "DVM U20w 2021"]
[Site "Kiel"]
[Date "2022.07.25"]
[Round "5"]
[White "Bangsa-Giesen, Citra"]
[Black "Falke, Ornella"]
[Result "1-0"]
[ECO "B51"]
[WhiteElo "1420"]
[BlackElo "1912"]
[Annotator "TA"]
[PlyCount "95"]
[EventDate "2022.07.23"]
[EventType "team-tourn"]
[EventRounds "7"]
[EventCountry "GER"]
[SourceTitle "playchess.com"]
[Source "ChessBase"]
[SourceQuality "1"]
[TimeControl "40/5400+30:1800+30"]

{[%evp 9,95,9,15,17,37,45,41,-18,-10,-19,-8,-17,-18,-24,-18,-15,-13,-70,-61,-80,-55,-37,-26,-66,-39,-200,-206,-220,-158,-154,-160,-159,-169,-214,-187,-209,-214,-232,-126,-131,-146,-123,-103,-98,-90,-87,-82,-68,-64,-99,116,116,146,141,174,162,182,173,199,193,591,600,604,599,598,558,745,737,723,737,738,728,746,624,702,652,1100,624,1172,943,929,900,5585,5410,3162,2506,29981,29969]} 1. e4 {[%emt 0:00:02]} c5 {[%emt 0:00:16]} 2. Nf3 {[%emt 0:00:16]} d6 {[%emt 0:00:10]} 3. Bb5+ {[%emt 0:00:11]} Nd7 {[%emt 0:00:12]} 4. O-O {[%emt 0:00:12]} a6 {[%emt 0:01:18]} 5. Bd3 {[%emt 0:00:04]} Ngf6 {[%emt 0:00:22]} 6. c3 {[%emt 0:00:15] B51: Sicilian: Moscow Variation (3 Bb5+) without 3...Bd7.} g6 {[%emt 0:04:16]} 7. Bc2 {[%emt 0:00:27]} Bg7 {[%emt 0:02:21]} 8. d3 {[%emt 0:00:49]} (8. d4 $14) 8... b5 $11 {[%emt 0:01:20][%cal Bb7b5,Bb5b4][%mdl 32]} 9. Re1 {[%emt 0:01:13]} O-O {[%emt 0:00:49]} 10. Nbd2 {[%emt 0:00:33]} Bb7 {[%emt 0:01:44]} 11. Nf1 {[%emt 0:00:36]} Rc8 {[%emt 0:01:18]} 12. Ng3 {[%emt 0:00:21]} Qc7 {[%emt 0:00:41] [#]} 13. b3 $146 {[%emt 0:08:04]} ({White should play} 13. Bg5 $11) ({Predecessor:} 13. Bg5 h6 14. Bd2 a5 15. Rc1 Nb6 16. h4 h5 17. Ng5 e6 18. Nf1 Rfe8 19. Nh2 {1-0 (33) Ceres,D (2354)-Domalchuk Jonasson,A (2137) Vinnytsia 2022}) 13... b4 {[%emt 0:02:18]} 14. Bb2 {[%emt 0:01:24]} a5 {[%emt 0:07:57]} (14... Ng4 {feels hotter.} 15. Ne2 d5 16. h3 Nge5) 15. Rc1 {[%emt 0:00:42]} e5 {[%emt 0:07:26][%cal Be7e5,Be5d4][%mdl 32]} 16. Bb1 {[%emt 0:04:30]} Qd8 {[%emt 0:04:02]} 17. d4 $2 {[%emt 0:03:52]} (17. a3) (17. Nf1 $15) 17... bxc3 $19 {[%emt 0:00:35]} 18. Bxc3 {[%emt 0:05:05][%cal Rd4e5]} exd4 {[%emt 0:00:44]} 19. Bd2 {[%emt 0:00:52]} Re8 {[%emt 0:00:40]} 20. Bf4 {[%emt 0:02:22]} Ne5 {[%emt 0:00:37]} 21. Nd2 {[%emt 0:06:06]} Ba6 {[%emt 0:01:30]} 22. Bxe5 {[%emt 0:11:03]} dxe5 {[%emt 0:01:48]} 23. Nc4 {[%emt 0:00:07]} h5 {[%emt 0:08:16]} (23... Bh6 $19 24. Rc2 a4) 24. Bd3 {[%emt 0:05:33]} Bh6 {[%emt 0:01:44]} 25. Rc2 {[%emt 0:01:55]} h4 {[%emt 0:00:39]} 26. Nf1 {[%emt 0:00:22][%cal Bg3f1,Bf1d2,Bd2f3,Bf3h4][%mdl 32]} Kg7 {[%emt 0:04:14][%cal Oa5a4]} 27. Nfd2 {[%emt 0:03:17]} Rc6 {[%emt 0:04:58]} 28. Nf3 {[%emt 0:07:16][%csl LRe5,LRh4]} Bxc4 {[%emt 0:04:20]} 29. Bxc4 {[%emt 0:01:51]} Nh5 $2 {[%emt 0:02:25]} (29... h3 $17 {keeps the pressure on. Threatens to win with ...Rd6.} 30. Bb5 Qb6) 30. Bb5 $16 {[%emt 0:02:09][%mdl 64] [#] Skewer. Black is on the road to losing.} Qd6 {[%emt 0:02:04][%cal Oe8d8]} 31. Nxh4 {[%emt 0:05:13][%cal Od1h5] Strongly threatening Qxh5!} Rh8 {[%emt 0:01:20]} 32. Bxc6 {[%emt 0:03:57]} Qxc6 {[%emt 0:00:03]} 33. g3 {[%emt 0:00:37] Prevents Nf4.} Bg5 {[%emt 0:02:19]} 34. Nf3 {[%emt 0:01:38][%csl LRe5,LRg5]} Qf6 {[%emt 0:02:10]} (34... Bf6 {is a better chance.} 35. Qd2 Qc7) 35. Rxc5 $18 {[%emt 0:03:05]} Re8 {[%emt 0:02:14]} 36. Nxg5 {[%emt 0:00:13]} Qxg5 {[%emt 0:00:05]} 37. Qxd4 {[%emt 0:02:15]} Nf4 {[%emt 0:01:58]} 38. Qe3 {[%emt 0:06:23]} Nh3+ {[%emt 0:02:15]} 39. Kg2 {[%emt 0:01:45]} Qh5 {[%emt 0:00:09]} 40. Qf3 {[%emt 0:01:52]} Qh6 {[%emt 0:00:20]} 41. Qg4 {[%emt 0:31:11]} Ng5 {[%emt 0:31:41]} 42. f4 {[%emt 0:01:35][%cal Bf2f4,Bf4e5,Be5e6][%mdl 32]} Nxe4 {[%emt 0:02:22]} 43. Rxe5 {[%emt 0:04:12]} f5 {[%emt 0:03:17]} 44. Qd1 {[%emt 0:03:03]} Rxe5 {[%emt 0:02:51]} 45. fxe5 {[%emt 0:00:24]} Qg5 {[%emt 0:00:31]} 46. Qd7+ {[%emt 0:02:24]} Kh6 {[%emt 0:00:23]} 47. e6 {[%emt 0:02:11][%cal Oe1e4] [#] Intending Rxe4! and mate.} Nf6 {[%emt 0:00:30]} 48. Qd8 {[%emt 0:00:00] Weighted Error Value: White=0.38/Black=0.43} 1-0

[Event "DVM U20w 2021"]
[Site "Kiel"]
[Date "2022.07.25"]
[Round "5"]
[White "Neumeier, Valentina"]
[Black "Margaryan, Susanna"]
[Result "0-1"]
[ECO "B15"]
[WhiteElo "1392"]
[BlackElo "1436"]
[Annotator "NA RC COMBH"]
[PlyCount "94"]
[EventDate "2022.07.23"]
[EventType "team-tourn"]
[EventRounds "7"]
[EventCountry "GER"]
[SourceTitle "playchess.com"]
[Source "ChessBase"]
[SourceQuality "1"]
[TimeControl "40/5400+30:1800+30"]

1. e4 {[%emt 0:00:01]} c6 {[%emt 0:00:12]} 2. d4 {[%emt 0:00:07]} d5 {[%emt 0:00:06]} 3. Nc3 {[%emt 0:00:05]} dxe4 {[%emt 0:00:09]} 4. Nxe4 {[%emt 0:00:08]} Nf6 {[%emt 0:00:12]} 5. Ng3 {[%emt 0:00:13]} Bg4 {[%emt 0:00:53]} 6. Be2 {[%emt 0:02:26]} Bxe2 {[%emt 0:00:23]} 7. N1xe2 {[%emt 0:00:07]} e6 {[%emt 0:00:47]} 8. c3 {[%emt 0:00:30]} Qc7 {[%emt 0:00:10]} 9. f4 {[%emt 0:01:30]} Bd6 {[%emt 0:00:37]} 10. Qc2 {[%emt 0:01:33]} Nbd7 {[%emt 0:01:23]} 11. Bd2 {[%emt 0:02:42]} h5 {[%emt 0:11:14]} 12. h3 {[%emt 0:04:48]} h4 {[%emt 0:00:57]} 13. Ne4 {[%emt 0:00:11]} Nxe4 {[%emt 0:00:19]} 14. Qxe4 {[%emt 0:00:14]} Nf6 {[%emt 0:00:32]} 15. Qe3 {[%emt 0:01:34]} O-O-O {[%emt 0:01:42]} 16. O-O-O {[%emt 0:00:29]} Nd5 {[%emt 0:02:29]} 17. Qf3 {[%emt 0:00:52]} b5 {[%emt 0:05:44]} 18. Rhf1 {[%emt 0:05:55]} f5 {[%emt 0:04:43]} 19. Kb1 {[%emt 0:01:49]} Kb7 {[%emt 0:03:17]} 20. Rc1 {[%emt 0:03:29]} Rb8 {[%emt 0:02:39]} 21. Qd3 {[%emt 0:04:44]} Nb6 {[%emt 0:03:15]} 22. Be1 {[%emt 0:10:46]} a5 {[%emt 0:02:10]} 23. Qc2 {[%emt 0:01:57]} Nc4 {[%emt 0:00:55]} 24. Rf3 {[%emt 0:02:02]} Ba3 {[%emt 0:01:31]} 25. Qb3 {[%emt 0:04:35]} a4 {[%emt 0:00:45]} 26. Qc2 {[%emt 0:00:45]} Bxb2 {[%emt 0:00:20]} 27. Qd3 {[%emt 0:01:50]} Bxc1 {[%emt 0:00:15]} 28. Nxc1 {[%emt 0:00:38]} Qd6 {[%emt 0:00:59]} 29. Rf2 {[%emt 0:01:58]} Rh6 {[%emt 0:02:20]} 30. Ka1 {[%emt 0:01:05]} Qa3 {[%emt 0:02:03]} 31. Qb1 {[%emt 0:01:04]} Rg6 {[%emt 0:00:55]} 32. Nd3 {[%emt 0:02:20]} Kc7 {[%emt 0:01:19]} 33. Nb4 {[%emt 0:00:45]} Rb6 {[%emt 0:00:37]} 34. Re2 {[%emt 0:01:09]} Kd7 {[%emt 0:04:06]} 35. Qc2 {[%emt 0:01:11]} Rh6 {[%emt 0:04:28]} 36. Bf2 {[%emt 0:00:50]} Rb8 {[%emt 0:03:07]} 37. Re5 {[%emt 0:12:55]} Ra8 {[%emt 0:08:30]} 38. Rc5 {[%emt 0:03:28]} Na5 {[%emt 0:04:08]} 39. Be3 {[%emt 0:03:18]} Nb3+ {[%emt 0:01:43]} 40. Kb1 {[%emt 0:00:11]} Rg6 {[%emt 0:10:32]} 41. Nd3 {[%emt 0:42:55]} Rg3 {[%emt 0:34:04]} 42. Ne5+ {[%emt 0:01:38]} Ke7 {[%emt 0:01:56]} 43. Nf3 {[%emt 0:01:59]} Rd8 {[%emt 0:04:30]} 44. Rxc6 {[%emt 0:05:40]} b4 {[%emt 0:00:00]} 45. axb3 {[%emt 0:00:00]} axb3 {[%emt 0:00:00]} 46. Qb2 {[%emt 0:00:00]} Ra8 {[%emt 0:00:00]} 47. Qxa3 {[%emt 0:00:00]} bxa3 {[%emt 0:00:00]} 0-1

[Event "DVM U20w 2021"]
[Site "Kiel"]
[Date "2022.07.25"]
[Round "5"]
[White "Tabakh, Tassnim"]
[Black "Muedder, Melanie"]
[Result "0-1"]
[ECO "A48"]
[WhiteElo "1241"]
[BlackElo "1865"]
[Annotator "NA RC COMBH"]
[PlyCount "62"]
[EventDate "2022.07.23"]
[EventType "team-tourn"]
[EventRounds "7"]
[EventCountry "GER"]
[SourceTitle "playchess.com"]
[Source "ChessBase"]
[SourceQuality "1"]
[TimeControl "40/5400+30:1800+30"]

1. Nf3 {[%emt 0:00:03]} Nf6 {[%emt 0:00:08]} 2. d4 {[%emt 0:00:05]} g6 {[%emt 0:00:08]} 3. Bg5 {[%emt 0:00:37]} Ne4 {[%emt 0:01:43]} 4. Bh4 {[%emt 0:02:23]} Bg7 {[%emt 0:01:12]} 5. g4 {[%emt 0:03:11]} c5 {[%emt 0:01:55]} 6. c3 {[%emt 0:01:07]} d5 {[%emt 0:01:54]} 7. h3 {[%emt 0:01:57]} Nc6 {[%emt 0:01:50]} 8. e3 {[%emt 0:01:23]} Qb6 {[%emt 0:04:22]} 9. Qc2 {[%emt 0:03:03]} Bd7 {[%emt 0:04:22]} 10. Nbd2 {[%emt 0:03:45]} Nxd2 {[%emt 0:02:11]} 11. Qxd2 {[%emt 0:02:03]} O-O {[%emt 0:04:49]} 12. O-O-O {[%emt 0:06:26]} Rac8 {[%emt 0:04:31]} (12... cxd4 $15 13. Nxd4 e6) 13. Kb1 {[%emt 0:04:37]} cxd4 {[%emt 0:01:44]} 14. exd4 {[%emt 0:00:28]} Qa5 {[%emt 0:02:33]} (14... e5 $17 15. dxe5 Nxe5) 15. Bg2 {[%emt 0:04:40]} b5 {[%emt 0:03:04]} 16. a3 {[%emt 0:04:28]} Qb6 $11 {[%emt 0:03:46]} 17. Ne5 {[%emt 0:06:36]} Nxe5 {[%emt 0:07:38]} 18. dxe5 {[%emt 0:00:25]} e6 {[%emt 0:01:50]} 19. Rhe1 {[%emt 0:01:11]} a5 {[%emt 0:01:32]} 20. Qd4 {[%emt 0:01:50]} Qb8 {[%emt 0:02:02]} 21. Bf1 {[%emt 0:01:21]} b4 {[%emt 0:06:07]} 22. cxb4 {[%emt 0:01:38]} Ba4 {[%emt 0:03:20]} 23. Rc1 {[%emt 0:02:31]} Rxc1+ {[%emt 0:01:20]} 24. Rxc1 {[%emt 0:00:53]} Bxe5 {[%emt 0:00:51]} 25. Qc5 {[%emt 0:01:14]} Bf4 {[%emt 0:02:48]} 26. Rc3 {[%emt 0:01:50]} d4 {[%emt 0:07:39]} 27. Rc4 {[%emt 0:03:08]} Bb3 {[%emt 0:01:45]} 28. Rxd4 {[%emt 0:02:15]} Rc8 {[%emt 0:00:50]} 29. Bg3 {[%emt 0:01:35]} Bxg3 {[%emt 0:02:10]} 30. Qxc8+ {[%emt 0:00:34]} Qxc8 {[%emt 0:00:07]} 31. fxg3 {[%emt 0:00:08]} Qc2+ {[%emt 0:00:09]} 0-1

[Event "DVM U20w 2021"]
[Site "Kiel"]
[Date "2022.07.25"]
[Round "5"]
[White "Hoffmann, Sophia"]
[Black "Albayrak, Nese Pinar"]
[Result "0-1"]
[ECO "A48"]
[WhiteElo "1214"]
[BlackElo "1651"]
[Annotator "NA RC COMBH"]
[PlyCount "46"]
[EventDate "2022.07.23"]
[EventType "team-tourn"]
[EventRounds "7"]
[EventCountry "GER"]
[SourceTitle "playchess.com"]
[Source "ChessBase"]
[SourceQuality "1"]
[TimeControl "40/5400+30:1800+30"]

1. d4 {[%emt 0:00:02]} Nf6 {[%emt 0:00:06]} 2. Nf3 {[%emt 0:00:04]} g6 {[%emt 0:00:05]} 3. Bf4 {[%emt 0:00:06]} Bg7 {[%emt 0:00:07]} 4. e3 {[%emt 0:00:07]} O-O {[%emt 0:00:16]} 5. Be2 {[%emt 0:00:14]} d6 {[%emt 0:00:05]} 6. h3 {[%emt 0:02:45]} Nbd7 {[%emt 0:03:04]} 7. Nbd2 {[%emt 0:00:00]} c5 {[%emt 0:02:24]} 8. O-O {[%emt 0:00:00]} a6 {[%emt 0:05:41]} 9. a4 {[%emt 0:03:08]} b6 {[%emt 0:05:57]} 10. Bh2 {[%emt 0:07:23]} Bb7 {[%emt 0:01:24]} 11. Ne1 {[%emt 0:05:48]} Rc8 {[%emt 0:14:09]} 12. Bf3 {[%emt 0:05:21]} Qc7 {[%emt 0:04:49]} 13. Bxb7 {[%emt 0:02:49]} Qxb7 {[%emt 0:00:02]} 14. Nd3 {[%emt 0:05:34]} Rc7 {[%emt 0:10:05]} 15. c3 {[%emt 0:04:02]} b5 {[%emt 0:05:21]} 16. axb5 {[%emt 0:03:41]} axb5 {[%emt 0:12:24]} 17. dxc5 {[%emt 0:02:58]} Nxc5 {[%emt 0:00:10]} 18. Nxc5 {[%emt 0:00:47]} Rxc5 {[%emt 0:00:02]} 19. Qb3 {[%emt 0:01:23]} Rg5 {[%emt 0:09:44]} 20. Nf3 {[%emt 0:03:08]} Qxf3 {[%emt 0:01:58]} 21. g3 {[%emt 0:06:25]} Rh5 {[%emt 0:05:51]} 22. h4 {[%emt 0:01:47]} g5 {[%emt 0:01:59]} 23. hxg5 {[%emt 0:03:27]} Ng4 {[%emt 0:01:41]} 0-1

[Event "DVM U20w 2021"]
[Site "Kiel"]
[Date "2022.07.25"]
[Round "5"]
[White "Neitzel, Emma"]
[Black "Weiß, Sara"]
[Result "1-0"]
[ECO "C42"]
[WhiteElo "1135"]
[BlackElo "714"]
[Annotator "NA RC COMBH"]
[PlyCount "31"]
[EventDate "2022.07.23"]
[EventType "team-tourn"]
[EventRounds "7"]
[EventCountry "GER"]
[SourceTitle "playchess.com"]
[Source "ChessBase"]
[SourceQuality "1"]
[TimeControl "40/5400+30:1800+30"]

1. e4 {[%emt 0:00:02]} Nf6 {[%emt 0:00:19]} 2. Nc3 {[%emt 0:00:51]} e5 {[%emt 0:00:38]} 3. Nf3 {[%emt 0:00:12]} d6 {[%emt 0:01:17]} 4. Bc4 {[%emt 0:00:17]} Bg4 {[%emt 0:01:06]} 5. h3 {[%emt 0:00:23]} Be6 {[%emt 0:00:49]} 6. Bxe6 {[%emt 0:00:16]} fxe6 {[%emt 0:02:01]} 7. O-O {[%emt 0:00:22]} Be7 {[%emt 0:01:09]} 8. d4 {[%emt 0:00:28]} exd4 {[%emt 0:00:21]} 9. Nxd4 {[%emt 0:00:12]} d5 {[%emt 0:02:20]} 10. Nxe6 {[%emt 0:00:29]} Qd6 {[%emt 0:04:06]} 11. exd5 {[%emt 0:00:39]} Nxd5 {[%emt 0:02:06]} 12. Nxd5 {[%emt 0:00:19]} Nc6 {[%emt 0:00:44]} 13. Nexc7+ {[%emt 0:00:22]} Kd8 {[%emt 0:00:33]} 14. Nxa8 {[%emt 0:00:15]} Qb8 {[%emt 0:00:22]} 15. Nf6+ {[%emt 0:00:45]} Kc8 {[%emt 0:01:11]} 16. Qd7# {[%emt 0:00:37]} 1-0

[Event "DVM U20w 2021"]
[Site "Kiel"]
[Date "2022.07.25"]
[Round "6"]
[White "Peglau, Dora"]
[Black "Muedder, Melanie"]
[Result "1/2-1/2"]
[ECO "A25"]
[WhiteElo "1920"]
[BlackElo "1865"]
[Annotator "TA"]
[PlyCount "47"]
[EventDate "2022.07.23"]
[EventType "team-tourn"]
[EventRounds "7"]
[EventCountry "GER"]
[SourceTitle "playchess.com"]
[Source "ChessBase"]
[SourceQuality "1"]
[TimeControl "40/5400+30:1800+30"]

{[%evp 9,47,14,20,23,25,-7,-9,2,-7,-120,-110,-106,-105,-120,-21,-18,0,-69,-48,-66,-68,-166,138,106,91,74,154,0,0,-97,-79,-99,-81,-84,-47,-66,-41,-103,0,0]} 1. c4 {[%emt 0:00:07]} e5 {[%emt 0:00:10]} 2. Nc3 {[%emt 0:00:12]} Nc6 {[%emt 0:00:48]} 3. g3 {[%emt 0:00:45]} Bc5 {[%emt 0:00:19]} 4. Bg2 {[%emt 0:01:46]} d6 {[%emt 0:00:51]} 5. e3 {[%emt 0:02:24]} a6 {[%emt 0:00:23]} 6. Nge2 {[%emt 0:01:08] A25: English Opening vs King's Indian with ...Nc6 but without early d3.} Ba7 {[%emt 0:00:49]} 7. O-O {[%emt 0:04:27][%cal Be1g1,Bg1f2,Bf2f3][%mdl 32]} h5 {[%emt 0:04:21]} 8. d4 {[%emt 0:07:01]} h4 {[%emt 0:06:12]} 9. f4 {[%emt 0:15:37]} (9. b4 $11) 9... hxg3 $17 {[%emt 0:18:21]} 10. hxg3 {[%emt 0:00:39] [#]} Nh6 $146 {[%emt 0:11:06]} ({Predecessor:} 10... Bg4 11. fxe5 Qg5 12. e4 Qh5 13. Be3 dxe5 14. Qd2 exd4 15. Nxd4 Nxd4 16. Bxd4 O-O-O {0-1 (103) Perdomo,C (2301)-Cervantes Landeiro,T (2311) Chess.com INT 2020}) 11. dxe5 {[%emt 0:07:03]} Nf5 {[%emt 0:05:57]} (11... Bg4 $17 {Strongly threatening ...Nf5.} 12. Qc2 dxe5) 12. Kf2 $11 {[%emt 0:07:56]} Nh6 {[%emt 0:11:37]} 13. Bf3 {[%emt 0:16:05]} (13. Kg1 $11) 13... Bg4 $15 {[%emt 0:13:35]} (13... Ng4+ $6 14. Kg2 $11) 14. exd6 {[%emt 0:02:33]} cxd6 {[%emt 0:05:25]} 15. Ne4 {[%emt 0:04:20]} ({White should play} 15. b4 $15) 15... O-O $2 {[%emt 0:02:02]} (15... Bxf3 $19 16. Kxf3 Qd7) 16. Rh1 {[%emt 0:05:29][%cal Oh1h6] aiming for Rxh6!} (16. Nxd6 Bxf3 17. Kxf3 Qd7 $17) (16. Qxd6 Qc8 17. Bg2 Bh3 $15) 16... Bxf3 {[%emt 0:03:15]} 17. Kxf3 {[%emt 0:00:04] N2c3 is the strong threat.} Re8 {[%emt 0:05:22]} (17... f5 $142) 18. Qxd6 $2 {[%emt 0:05:03]} (18. Nxd6 $6 Re6 19. c5 (19. Nxb7 $2 Qe7 $19) 19... Bxc5 $11) (18. N2c3 $1 $16) 18... f5 $11 {[%emt 0:03:46]} ({Don't do} 18... Qc8 19. Nf6+ $1 {[%mdl 512]} (19. Rxh6 Rxe4 20. Rh2 Re6 $16) 19... gxf6 20. Rxh6 $16 (20. Qxf6 $2 Qg4+ 21. Kf2 Bxe3+ 22. Bxe3 Rxe3 $19)) 19. Nf6+ {[%emt 0:04:30]} gxf6 $17 {[%emt 0:02:10]} 20. Qxd8 {[%emt 0:00:04]} Raxd8 {[%emt 0:00:06]} 21. Rxh6 {[%emt 0:00:06]} Kg7 {[%emt 0:00:08]} 22. Rh1 {[%emt 0:01:01]} Rd3 {[%emt 0:00:24][%cal Ra7e3]} 23. Nc3 {[%emt 0:06:11] [#]} (23. Kg2 $1 $15) 23... Bxe3 {[%emt 0:02:31]} ({Black should try} 23... Nd4+ $1 $17 24. Kf2 Nc2) 24. Rd1 $1 {[%emt 0:04:55] Weighted Error Value: White=0.53/Black=0.41} 1/2-1/2

[Event "DVM U20w 2021"]
[Site "Kiel"]
[Date "2022.07.25"]
[Round "6"]
[White "Falke, Ornella"]
[Black "Hrebenshchykova, Yelyzaveta"]
[Result "1/2-1/2"]
[ECO "B48"]
[WhiteElo "1912"]
[BlackElo "2088"]
[Annotator "TA"]
[PlyCount "96"]
[EventDate "2022.07.23"]
[EventType "team-tourn"]
[EventRounds "7"]
[EventCountry "GER"]
[SourceTitle "playchess.com"]
[Source "ChessBase"]
[SourceQuality "1"]
[TimeControl "40/5400+30:1800+30"]

{[%evp 14,96,41,27,60,14,43,2,5,0,0,0,0,0,20,17,39,37,54,45,58,41,60,48,67,72,77,60,67,58,77,72,111,111,103,101,150,74,76,74,78,86,83,81,72,64,87,94,76,50,58,0,85,5,7,0,0,0,0,-2,-10,-15,-14,-40,-41,-43,-39,-40,-18,-19,-20,-22,-18,-31,-32,-27,-29,-45,-42,-49,-44,-33,-11,-11,-8]} 1. e4 {[%emt 0:00:03]} c5 {[%emt 0:00:39]} 2. Nf3 {[%emt 0:00:16]} e6 {[%emt 0:00:06]} 3. d4 {[%emt 0:00:16]} cxd4 {[%emt 0:00:05]} 4. Nxd4 {[%emt 0:00:09]} Nc6 {[%emt 0:00:07]} 5. Nc3 {[%emt 0:00:19]} Qc7 {[%emt 0:00:14]} 6. Be3 {[%emt 0:00:26]} a6 {[%emt 0:03:10]} 7. a3 {[%emt 0:00:41] Recently 7.g4 got a lot of attention.} Nf6 {[%emt 0:00:52]} 8. f4 {[%emt 0:01:16]} Nxd4 {[%emt 0:21:40] B48: Sicilian: Taimanov: 5 Nc3 Qc7 6 Be3 a6 without Be2.} 9. Qxd4 {[%emt 0:03:27]} (9. Bxd4 $14 {was preferrable.} d6 10. Be2) 9... Ng4 $11 {[%emt 0:00:19]} 10. Qb6 {[%emt 0:05:34]} Bd6 {[%emt 0:08:33]} 11. Qxc7 {[%emt 0:13:37]} Bxc7 {[%emt 0:00:05]} 12. Bd2 {[%emt 0:00:11]} Bb6 {[%emt 0:05:05] [#] Hoping for ...Nf2.} 13. Nd1 {[%emt 0:01:24] Prevents Nf2.} d6 {[%emt 0:03:18] Against e5} 14. Be2 $36 {[%emt 0:12:55][%mdl 2048] [#] White has good play.} h5 $146 {[%emt 0:06:56]} ({Predecessor:} 14... Nf6 15. Bf3 Bc7 16. Nf2 d5 17. exd5 exd5 18. O-O-O O-O 19. g3 Bf5 20. Rhe1 Rac8 {1-0 (49) Smal,T (1814)-Karwowski,K (1824) Koszalin 2012}) 15. Bf3 {[%emt 0:01:52]} e5 {[%emt 0:05:30]} 16. h3 {[%emt 0:04:08]} Nf6 {[%emt 0:01:13]} 17. Ne3 {[%emt 0:00:28]} Be6 {[%emt 0:15:51] Inhibits Nc4.} 18. f5 {[%emt 0:03:29]} Bxe3 {[%emt 0:00:25]} 19. Bxe3 {[%emt 0:00:21]} Bc4 {[%emt 0:00:05]} 20. Rd1 {[%emt 0:08:01] Against d5} d5 {[%emt 0:05:26]} 21. exd5 {[%emt 0:05:10]} e4 {[%emt 0:00:05]} 22. Be2 {[%emt 0:01:37]} Bxd5 {[%emt 0:01:08]} 23. c4 {[%emt 0:01:25]} Bc6 {[%emt 0:00:08]} 24. O-O {[%emt 0:02:39]} h4 {[%emt 0:02:21]} ({Black should play} 24... Rd8) 25. Rd6 {[%emt 0:02:38]} ({Better is} 25. Rf4) 25... Nh5 $16 {[%emt 0:01:18]} 26. Bxh5 {[%emt 0:03:55] 0x0.001681b896cfdp-1022s more active pieces. The black rooks are badly placed.} Rxh5 {[%emt 0:00:05]} 27. f6 {[%emt 0:04:51]} gxf6 {[%emt 0:00:14]} 28. Rdxf6 {[%emt 0:00:18]} Rh7 {[%emt 0:00:27]} 29. Bb6 {[%emt 0:03:13] Against Rd8} Rc8 {[%emt 0:04:39]} 30. R1f5 {[%emt 0:06:27]} Rg7 {[%emt 0:01:12][%cal Oe4e3]} 31. Re5+ {[%emt 0:03:52]} Kd7 $1 {[%emt 0:04:13]} 32. Ref5 {[%emt 0:01:57]} (32. b4 $5 {[%cal Rb4b5]} Re8 33. Rxe8 Kxe8 34. Be3 $14) 32... Ke8 {[%emt 0:01:39][%cal Oe4e3]} 33. Rf2 {[%emt 0:02:48]} (33. Be3 $16) 33... Bd7 $11 {[%emt 0:01:39][%csl LRc4,LRh3]} 34. c5 {[%emt 0:02:39]} Bxh3 {[%emt 0:01:36]} 35. R6f4 {[%emt 0:00:17][%csl LRe4,LRh4]} Be6 {[%emt 0:01:05]} 36. Rxh4 {[%emt 0:00:31]} f5 {[%emt 0:00:33]} 37. Rh8+ {[%emt 0:02:03]} Ke7 {[%emt 0:01:29]} 38. Rxc8 {[%emt 0:00:09]} Bxc8 {[%emt 0:00:04][%mdl 4096] Endgame KRB-KRB} 39. Bc7 {[%emt 0:01:01]} Ke6 {[%emt 0:01:36]} 40. Bd6 {[%emt 0:00:48]} Bd7 {[%emt 0:00:50]} (40... b6 $5) 41. Rd2 {[%emt 0:31:24]} Bb5 {[%emt 0:32:24] [#] ...e3 is the strong threat.} 42. Kf2 {[%emt 0:00:00]} Rh7 {[%emt 0:00:00]} 43. Rd1 {[%emt 0:05:42]} Bd3 {[%emt 0:00:00]} 44. Ke3 {[%emt 0:00:00]} Kd5 {[%emt 0:00:00]} 45. Kf4 {[%emt 0:00:00]} Rh5 {[%emt 0:00:00]} 46. Rc1 {[%emt 0:00:00]} Rh2 {[%emt 0:00:00]} 47. Rg1 {[%emt 0:00:00]} Ke6 {[%emt 0:00:00]} 48. Ke3 {[%emt 0:00:00]} Rh4 {[%emt 0:00:00] Weighted Error Value: White=0.12 (very precise) /Black=0.08 (flawless)} 1/2-1/2